fUSD/lending_fUSD_20260426
["ID","MTS","AMOUNT","RATE_DAILY","PERIOD"]
[421146697,1777161126904,-300.0,0.00039251,2]
[421146698,1777161126914,-309.57949225,0.00039251,2]
[421146699,1777161126924,-300.0,0.00039251,2]
[421146700,1777161126933,-461.90575854,0.00039251,2]
[421146701,1777161126944,-300.0,0.00039251,2]
[421146702,1777161126953,-432.80837989,0.00039251,2]
[421146703,1777161126962,-449.9859185,0.00039251,2]
[421146704,1777161126971,-300.0,0.00039251,2]
[421146705,1777161126981,-300.0,0.00039251,2]
[421146706,1777161126990,-303.58934817,0.00039251,2]
[421146707,1777161126999,-300.0,0.00039251,2]
[421146708,1777161127009,-300.0,0.00039251,2]
[421146709,1777161127019,-300.0,0.00039251,2]
[421146710,1777161127029,-522.50297797,0.00039251,2]
[421146711,1777161127039,-308.53447598,0.00039251,2]
[421146712,1777161127049,-300.0,0.00039251,2]
[421146713,1777161127059,-300.0,0.00039251,2]
[421146714,1777161127068,-419.48594627,0.00039251,2]
[421146715,1777161127079,-300.0,0.00039251,2]
[421146716,1777161127089,-300.0,0.00039251,2]
[421146717,1777161127100,-300.0,0.00039251,2]
[421146718,1777161127110,-1090.07406018,0.00039251,2]
[421146719,1777161127120,-300.0,0.00039251,2]
[421146720,1777161127130,-300.0,0.00039251,2]
[421146721,1777161127140,-300.0,0.00039251,2]
[421146722,1777161127150,-300.0,0.00039251,2]
[421146723,1777161127160,-300.0,0.00039251,2]
[421146724,1777161127170,-300.0,0.00039251,2]
[421146725,1777161127180,-300.0,0.00039251,2]
[421146726,1777161127192,-300.0,0.00039251,2]
[421146727,1777161127202,-300.0,0.00039251,2]
[421146728,1777161127213,-300.0,0.00039251,2]
[421146729,1777161127226,-490.6092042,0.00039251,2]
[421146730,1777161127237,-300.0,0.00039251,2]
[421146731,1777161127247,-300.0,0.00039251,2]
[421146732,1777161127257,-300.0,0.00039251,2]
[421146733,1777161127267,-601.9257695,0.00039251,2]
[421146734,1777161127277,-300.0,0.00039251,2]
[421146735,1777161127287,-300.0,0.00039251,2]
[421146736,1777161127298,-300.0,0.00039251,2]
[421146737,1777161127308,-1062.4192964,0.00039251,2]
[421146738,1777161127319,-525.51894207,0.00039251,2]
[421146739,1777161127329,-421.67470423,0.00039251,2]
[421146740,1777161127339,-723.0136486,0.00039251,2]
[421146741,1777161127349,-300.54566203,0.00039251,2]
[421146742,1777161127359,-300.0,0.00039251,2]
[421146743,1777161127369,-306.94758228,0.00039251,2]
[421146744,1777161127378,-300.0,0.00039251,2]
[421146745,1777161127388,-300.0,0.00039251,2]
[421146746,1777161127398,-300.0,0.00039251,2]
[421146747,1777161127408,-300.0,0.00039251,2]
[421146748,1777161127418,-300.0,0.00039251,2]
[421146749,1777161127428,-300.0,0.00039251,2]
[421146750,1777161127439,-843.11208289,0.00039251,2]
[421146751,1777161127449,-360.21278131,0.00039251,2]
[421146752,1777161127459,-1142.33626978,0.00039251,2]
[421146753,1777161127469,-308.28549754,0.00039251,2]
[421146754,1777161127479,-300.0,0.00039251,2]
[421146755,1777161127488,-860.76050611,0.00039251,2]
[421146756,1777161127498,-300.0,0.00039251,2]
[421146757,1777161127508,-460.74968328,0.00039251,2]
[421146758,1777161127518,-300.0,0.00039251,2]
[421146759,1777161127528,-309.57949227,0.00039251,2]
[421146760,1777161127538,-300.0,0.00039251,2]
[421146761,1777161127548,-461.90575854,0.00039251,2]
[421146762,1777161127558,-300.0,0.00039251,2]
[421146763,1777161127568,-432.80837989,0.00039251,2]
[421146764,1777161127578,-449.9859185,0.00039251,2]
[421146765,1777161127591,-300.0,0.00039251,2]
[421146766,1777161127601,-300.0,0.00039251,2]
[421146767,1777161127610,-303.58934817,0.00039251,2]
[421146768,1777161127620,-300.0,0.00039251,2]
[421146769,1777161127630,-300.0,0.00039251,2]
[421146770,1777161127640,-300.0,0.00039251,2]
[421146771,1777161127650,-522.50297797,0.00039251,2]
[421146772,1777161127660,-308.53447598,0.00039251,2]
[421146773,1777161127671,-300.0,0.00039251,2]
[421146774,1777161127694,-300.0,0.00039251,2]
[421146775,1777161127708,-419.48594627,0.00039251,2]
[421146776,1777161127719,-300.0,0.00039251,2]
[421146777,1777161127729,-300.0,0.00039251,2]
[421146778,1777161127740,-342.24517658,0.00039251,2]
[421146779,1777161127750,-1090.07406018,0.00039251,2]
[421146780,1777161127761,-300.0,0.00039251,2]
[421146781,1777161127771,-300.42659714,0.00039251,2]
[421146782,1777161127782,-300.0,0.00039251,2]
[421146783,1777161127793,-300.0,0.00039251,2]
[421146784,1777161127803,-460.520695,0.00039251,2]
[421146785,1777161127814,-300.0,0.00039251,2]
[421146786,1777161127825,-300.0,0.00039251,2]
[421146787,1777161127836,-300.0,0.00039251,2]
[421146788,1777161127847,-300.0,0.00039251,2]
[421146789,1777161127857,-300.0,0.00039251,2]
[421146790,1777161127868,-318.97562215,0.00039251,2]
[421146791,1777161127878,-490.6092042,0.00039251,2]
[421146792,1777161127889,-300.0,0.00039251,2]
[421146793,1777161127900,-300.0,0.00039251,2]
[421146794,1777161127911,-601.9257695,0.00039251,2]
[421146795,1777161127921,-300.0,0.00039251,2]
[421146796,1777161127933,-300.0,0.00039251,2]
[421146797,1777161127943,-525.51894207,0.00039251,2]
[421146798,1777161127954,-300.0,0.00039251,2]
[421146799,1777161127964,-421.67470423,0.00039251,2]
[421146800,1777161127975,-1062.41929641,0.00039251,2]
[421146801,1777161127985,-723.0136486,0.00039251,2]
[421146802,1777161127995,-300.0,0.00039251,2]
[421146803,1777161128005,-301.35862809,0.00039251,2]
[421146804,1777161128016,-300.0,0.00039251,2]
[421146805,1777161128027,-300.0,0.00039251,2]
[421146806,1777161128037,-303.1833821,0.00039251,2]
[421146807,1777161128048,-300.0,0.00039251,2]
[421146808,1777161128059,-300.0,0.00039251,2]
[421146809,1777161128076,-843.11208289,0.00039251,2]
[421146810,1777161128087,-1142.33626978,0.00039251,2]
[421146811,1777161128098,-308.28549754,0.00039251,2]
[421146812,1777161128109,-860.76050611,0.00039251,2]
[421146813,1777161128120,-314.95591538,0.00039251,2]
[421146814,1777161128132,-300.0,0.00039251,2]
[421146815,1777161128143,-309.57949225,0.00039251,2]
[421146816,1777161128155,-300.0,0.00039251,2]
[421146817,1777161128166,-461.90575854,0.00039251,2]
[421146818,1777161128178,-300.0,0.00039251,2]
[421146819,1777161128189,-432.80837989,0.00039251,2]
[421146820,1777161128200,-449.98591848,0.00039251,2]
[421146821,1777161128211,-300.0,0.00039251,2]
[421146822,1777161128222,-300.0,0.00039251,2]
[421146823,1777161128233,-303.58934817,0.00039251,2]
[421146824,1777161128244,-300.0,0.00039251,2]
[421146825,1777161128255,-300.0,0.00039251,2]
[421146826,1777161128266,-300.0,0.00039251,2]
[421146827,1777161128277,-308.53447598,0.00039251,2]
[421146828,1777161128288,-522.50297797,0.00039251,2]
[421146829,1777161128297,-300.0,0.00039251,2]
[421146830,1777161128307,-300.0,0.00039251,2]
[421146831,1777161128317,-419.48594627,0.00039251,2]
[421146832,1777161128327,-300.0,0.00039251,2]
[421146833,1777161128338,-300.0,0.00039251,2]
[421146834,1777161128349,-1090.07406018,0.00039251,2]
[421146835,1777161128360,-300.0,0.00039251,2]
[421146836,1777161128371,-300.0,0.00039251,2]
[421146837,1777161128381,-300.0,0.00039251,2]
[421146838,1777161128391,-300.0,0.00039251,2]
[421146839,1777161128401,-300.0,0.00039251,2]
[421146840,1777161128411,-300.0,0.00039251,2]
[421146841,1777161128422,-490.6092042,0.00039251,2]
[421146842,1777161128432,-300.0,0.00039251,2]
[421146843,1777161128443,-300.0,0.00039251,2]
[421146844,1777161128453,-300.0,0.00039251,2]
[421146845,1777161128469,-300.0,0.00039251,2]
[421146846,1777161128479,-525.51894207,0.00039251,2]
[421146847,1777161128489,-300.0,0.00039251,2]
[421146848,1777161128500,-1062.4192964,0.00039251,2]
[421146849,1777161128510,-421.67470423,0.00039251,2]
[421146850,1777161128521,-723.0136486,0.00039251,2]
[421146851,1777161128530,-300.0,0.00039251,2]
[421146852,1777161128541,-300.54566203,0.00039251,2]
[421146853,1777161128551,-300.00000001,0.00039251,2]
[421146854,1777161128561,-300.0,0.00039251,2]
[421146855,1777161128571,-300.0,0.00039251,2]
[421146856,1777161128581,-300.0,0.00039251,2]
[421146857,1777161128591,-1142.33626978,0.00039251,2]
[421146858,1777161128601,-308.28549754,0.00039251,2]
[421146859,1777161128611,-860.76050608,0.00039251,2]
[421146860,1777161128621,-300.0,0.00039251,2]
[421146861,1777161128631,-309.57949226,0.00039251,2]
[421146862,1777161128642,-300.0,0.00039251,2]
[421146863,1777161128651,-461.90575854,0.00039251,2]
[421146864,1777161128661,-300.0,0.00039251,2]
[421146865,1777161128672,-432.80837989,0.00039251,2]
[421146866,1777161128682,-449.98591848,0.00039251,2]
[421146867,1777161128693,-300.0,0.00039251,2]
[421146868,1777161128703,-300.0,0.00039251,2]
[421146869,1777161128713,-303.58934817,0.00039251,2]
[421146870,1777161129068,-415.21802496,0.00039251,2]
[421146871,1777161129080,-300.0,0.00039251,2]
[421146872,1777161129090,-300.0,0.00039251,2]
[421146873,1777161129100,-522.50297797,0.00039251,2]
[421146874,1777161129109,-563.62524128,0.00039251,2]
[421146875,1777161129119,-308.53447598,0.00039251,2]
[421146876,1777161129130,-300.0,0.00039251,2]
[421146877,1777161129139,-419.48594627,0.00039251,2]
[421146878,1777161129154,-300.0,0.00039251,2]
[421146879,1777161129164,-300.0,0.00039251,2]
[421146880,1777161129173,-1090.07406018,0.00039251,2]
[421146881,1777161129183,-337.98623776,0.00039251,2]
[421146882,1777161129192,-300.0,0.00039251,2]
[421146883,1777161129202,-300.0,0.00039251,2]
[421146884,1777161129211,-300.0,0.00039251,2]
[421146885,1777161129221,-300.0,0.00039251,2]
[421146886,1777161129231,-300.0,0.00039251,2]
[421146887,1777161129240,-300.0,0.00039251,2]
[421146888,1777161129249,-490.6092042,0.00039251,2]
[421146889,1777161129259,-300.0,0.00039251,2]
[421146890,1777161129270,-300.0,0.00039251,2]
[421146891,1777161129279,-300.0,0.00039251,2]
[421146892,1777161129289,-601.9257695,0.00039251,2]
[421146893,1777161129298,-380.68403773,0.00039251,2]
[421146894,1777161129308,-525.51894207,0.00039251,2]
[421146895,1777161129317,-300.0,0.00039251,2]
[421146896,1777161129327,-1062.4192964,0.00039251,2]
[421146897,1777161129336,-421.67470423,0.00039251,2]
[421146898,1777161129346,-723.0136486,0.00039251,2]
[421146899,1777161129356,-300.0,0.00039251,2]
[421146900,1777161129366,-300.54566203,0.00039251,2]
[421146901,1777161129375,-300.0,0.00039251,2]
[421146902,1777161129385,-300.0,0.00039251,2]
[421146903,1777161129394,-300.0,0.00039251,2]
[421146904,1777161129404,-300.0,0.00039251,2]
[421146905,1777161129413,-1142.33626978,0.00039251,2]
[421146906,1777161129422,-308.28549754,0.00039251,2]
[421146907,1777161129432,-860.76050609,0.00039251,2]
[421146908,1777161129441,-300.0,0.00039251,2]
[421146909,1777161129451,-309.57949227,0.00039251,2]
[421146910,1777161129461,-461.90575854,0.00039251,2]
[421146911,1777161129470,-300.0,0.00039251,2]
[421146912,1777161129480,-432.80837989,0.00039251,2]
[421146913,1777161129489,-449.98591848,0.00039251,2]
[421146914,1777161129499,-300.0,0.00039251,2]
[421146915,1777161129509,-300.0,0.00039251,2]
[421146916,1777161129518,-303.58934817,0.00039251,2]
[421146917,1777161129528,-300.0,0.00039251,2]
[421146918,1777161129537,-300.0,0.00039251,2]
[421146919,1777161129550,-522.50297797,0.00039251,2]
[421146920,1777161129559,-308.53447598,0.00039251,2]
[421146921,1777161129569,-300.0,0.00039251,2]
[421146922,1777161129579,-419.48594627,0.00039251,2]
[421146923,1777161129588,-300.0,0.00039251,2]
[421146924,1777161129598,-300.0,0.00039251,2]
[421146925,1777161129607,-1090.07406018,0.00039251,2]
[421146926,1777161129617,-300.0,0.00039251,2]
[421146927,1777161129627,-300.0,0.00039251,2]
[421146928,1777161129636,-300.0,0.00039251,2]
[421146929,1777161129646,-300.0,0.00039251,2]
[421146930,1777161129655,-300.0,0.00039251,2]
[421146931,1777161129665,-300.0,0.00039251,2]
[421146932,1777161129675,-300.0,0.00039251,2]
[421146933,1777161129684,-490.6092042,0.00039251,2]
[421146934,1777161129693,-300.0,0.00039251,2]
[421146935,1777161129702,-300.0,0.00039251,2]
[421146936,1777161129710,-300.0,0.00039251,2]
[421146937,1777161129720,-601.9257695,0.00039251,2]
[421146938,1777161129729,-525.51894207,0.00039251,2]
[421146939,1777161129737,-1062.4192964,0.00039251,2]
[421146940,1777161129746,-421.67470423,0.00039251,2]
[421146941,1777161129756,-723.0136486,0.00039251,2]
[421146942,1777161129766,-300.0,0.00039251,2]
[421146943,1777161129776,-300.0,0.00039251,2]
[421146944,1777161129785,-300.54566203,0.00039251,2]
[421146945,1777161129795,-300.0,0.00039251,2]
[421146946,1777161129804,-300.0,0.00039251,2]
[421146947,1777161129814,-302.10565487,0.00039251,2]
[421146948,1777161129824,-1142.33626978,0.00039251,2]
[421146949,1777161129834,-308.28549754,0.00039251,2]
[421146950,1777161129844,-860.76050609,0.00039251,2]
[421146951,1777161129854,-300.0,0.00039251,2]
[421146952,1777161129866,-309.57949225,0.00039251,2]
[421146953,1777161129875,-461.90575854,0.00039251,2]
[421146954,1777161129885,-300.0,0.00039251,2]
[421146955,1777161129895,-432.80837989,0.00039251,2]
[421146956,1777161129905,-449.98591852,0.00039251,2]
[421146957,1777161129914,-300.0,0.00039251,2]
[421146958,1777161129924,-300.0,0.00039251,2]
[421146959,1777161129934,-303.58934817,0.00039251,2]
[421146960,1777161129943,-300.0,0.00039251,2]
[421146961,1777161129952,-300.0,0.00039251,2]
[421146962,1777161129963,-522.50297797,0.00039251,2]
[421146963,1777161129972,-308.53447598,0.00039251,2]
[421146964,1777161129982,-250.0,0.0003926,7]
[421146965,1777161129991,-250.0,0.0003926,7]
[421146966,1777161130015,-213.89192375,0.0003928,120]
[421146967,1777161130025,-300.75779818,0.00039287,2]
[421146968,1777161130035,-300.75779818,0.00039287,2]
[421146969,1777161130044,-889.63985852,0.00039287,2]
[421146970,1777161130054,-889.63985852,0.00039287,2]
[421146971,1777161130063,-889.63985852,0.00039287,2]
[421146972,1777161130073,-889.63985852,0.00039287,2]
[421146973,1777161130082,-889.63985852,0.00039287,2]
[421146974,1777161130092,-889.63985852,0.00039287,2]
[421146975,1777161130102,-150.0,0.00039304,120]
[421146976,1777161130112,-889.51224704,0.00039324,2]
[421146977,1777161130121,-889.51224706,0.00039324,2]
[421146978,1777161130131,-889.51224705,0.00039324,2]
[421146979,1777161130140,-889.51224704,0.00039324,2]
[421146980,1777161130150,-889.51224705,0.00039324,2]
[421146981,1777161130159,-889.51224705,0.00039324,2]
[421146982,1777161130170,-889.51224705,0.00039324,2]
[421146983,1777161130179,-889.51224705,0.00039324,2]
[421146984,1777161130189,-889.51224705,0.00039324,2]
[421146985,1777161130199,-889.51224706,0.00039324,2]
[421146986,1777161130209,-889.51224704,0.00039324,2]
[421146987,1777161130219,-889.51224705,0.00039324,2]
[421146988,1777161130228,-889.51224705,0.00039324,2]
[421146989,1777161130238,-889.51224705,0.00039324,2]
[421146990,1777161130248,-889.51224706,0.00039324,2]
[421146991,1777161130257,-889.51224705,0.00039324,2]
[421146992,1777161130267,-889.51224705,0.00039324,2]
[421146993,1777161130276,-889.51224705,0.00039324,2]
[421146994,1777161130286,-889.51224704,0.00039324,2]
[421146995,1777161130295,-889.51224706,0.00039324,2]
[421146996,1777161130305,-889.51224704,0.00039324,2]
[421146997,1777161130315,-889.51224706,0.00039324,2]
[421146998,1777161130325,-889.51224704,0.00039324,2]
[421146999,1777161130335,-889.51224705,0.00039324,2]
[421147000,1777161130345,-889.51224706,0.00039324,2]
[421147001,1777161130354,-6606.6304,0.00039334,2]
[421147002,1777161130364,-937.84873823,0.00039371,106]
[421147003,1777161130374,-579.0,0.000394,120]
[421147004,1777161130384,-150.0,0.00039443,2]
[421147005,1777161130394,-430684.9818,0.00039444,7]
[421147006,1777161130409,-6606.6304,0.00039473,2]
[421147007,1777161130420,-150.42984125,0.0003948,120]
[421147008,1777161130429,-157.29380821,0.0003948,120]
[421147009,1777161130439,-290.40661129,0.0003948,120]
[421147010,1777161130449,-178.70231603,0.0003948,120]
[421147011,1777161130459,-160.93291203,0.0003948,120]
[421147012,1777161130469,-187.14239629,0.0003948,120]
[421147013,1777161130479,-4602.73052107,0.0003948,120]
[421147014,1777161130489,-9999.95,0.0003948,120]
[421147015,1777161130498,-3333.31666667,0.0003948,120]
[421147016,1777161130508,-166.66583333,0.0003948,120]
[421147017,1777161130518,-10555.98265983,0.000395,60]
[421147018,1777161130528,-220449.4624481,0.000395,45]
[421147019,1777161130537,-696.395,0.000395,60]
[421147020,1777161130547,-237426.05780531,0.000395,2]
[421147021,1777161130556,-157.18181311,0.00039518,2]
[421147022,1777161130566,-5038.48,0.000396,120]
[421147023,1777161130575,-6606.6304,0.00039611,2]
[421147024,1777161130585,-544.85,0.00039631,120]
[421147025,1777161130595,-877.38,0.00039631,120]
[421147026,1777161130604,-1870.75,0.00039631,120]
[421147027,1777161130614,-1870.75,0.00039631,120]
[421147028,1777161130623,-2956.38,0.00039631,120]
[421147029,1777161130633,-211.15,0.00039631,120]
[421147030,1777161130642,-1176.2368057,0.00039644,104]
[421147031,1777161130652,-811.94429367,0.00039647,120]
[421147032,1777161130662,-500.0,0.00039686,60]
[421147033,1777161130672,-19335.77918292,0.000397,120]
[421147034,1777161130682,-745.0,0.00039726,30]
[421147035,1777161130692,-681.0,0.00039726,30]
[421147036,1777161130701,-604.0,0.00039726,30]
[421147037,1777161130711,-292.0,0.00039726,30]
[421147038,1777161130720,-269.0,0.00039726,30]
[421147039,1777161130730,-412.0,0.00039726,30]
[421147040,1777161130739,-166.0,0.00039726,30]
[421147041,1777161130749,-274.0,0.00039726,30]
[421147042,1777161130759,-516.0,0.00039726,30]
[421147043,1777161130769,-393.0,0.00039726,30]
[421147044,1777161130779,-240.0,0.00039726,30]
[421147045,1777161130788,-6606.6304,0.0003975,2]
[421147046,1777161130804,-150.42984125,0.00039754,120]
[421147047,1777161130815,-290.40661129,0.00039754,120]
[421147048,1777161130825,-178.70231603,0.00039754,120]
[421147049,1777161130835,-160.93291203,0.00039754,120]
[421147050,1777161130845,-187.14239629,0.00039754,120]
[421147051,1777161130855,-4602.73052107,0.00039754,120]
[421147052,1777161130866,-9999.95,0.00039754,120]
[421147053,1777161130876,-3333.31666667,0.00039754,120]
[421147054,1777161130886,-166.66583333,0.00039754,120]
[421147055,1777161130895,-1471.36,0.00039777,120]
[421147056,1777161130905,-157.18181311,0.00039792,2]
[421147057,1777161130915,-1007.22358017,0.000398,120]
[421147058,1777161130925,-1000.0,0.000398,120]
[421147059,1777161130935,-6606.6304,0.00039888,2]
[421147060,1777161130945,-528.0,0.00039892,90]
[421147061,1777161130954,-4000.0,0.00039898,31]
[421147062,1777161130964,-167.2,0.000399,120]
[421147063,1777161130974,-466.38206411,0.000399,120]
[421147064,1777161130986,-505.0,0.00039909,24]
[421147065,1777161130996,-629.34,0.0003993,120]
[421147066,1777161131006,-75050.55336733,0.0003997,2]
[421147067,1777161131017,-500.0,0.00039998,31]
[421147068,1777161131030,-50000.0,0.0004,33]
[421147069,1777161131040,-50000.0,0.0004,35]
[421147070,1777161131051,-50000.0,0.0004,38]
[421147071,1777161131061,-50000.0,0.0004,40]
[421147072,1777161131071,-50000.0,0.0004,42]
[421147073,1777161131081,-732.0,0.0004,10]
[421147074,1777161131092,-44820.0,0.0004,30]
[421147075,1777161131102,-5500.0,0.0004,30]
[421147076,1777161131112,-210.0,0.0004,120]
[421147077,1777161131122,-569.28448169,0.0004,30]
[421147078,1777161131132,-581.06645561,0.0004,30]
[421147079,1777161131141,-51072.57207102,0.0004,30]
[421147080,1777161131151,-2000.0,0.0004,60]
[421147081,1777161131161,-835.97,0.0004,120]
[421147082,1777161131172,-78621.25586316,0.0004,7]
[421147083,1777161131183,-169.6904819,0.0004,30]
[421147084,1777161131193,-500.0,0.0004,120]
[421147085,1777161131203,-10697.33927218,0.0004,30]
[421147086,1777161131218,-942.59108373,0.0004,120]
[421147087,1777161131227,-156.64,0.0004,120]
[421147088,1777161131237,-7000.0,0.0004,90]
[421147089,1777161131247,-162.71596243,0.0004,14]
[421147090,1777161131257,-6123941.68963354,0.0004,120]
[421147091,1777161131267,-1790073.4,0.0004,120]
[421147092,1777161131276,-423.15905854,0.0004,2]
[421147093,1777161131286,-195.25281969,0.0004,5]
[421147094,1777161131295,-2032.0,0.0004,120]
[421147095,1777161131305,-367.17722523,0.0004,3]
[421147096,1777161131315,-592.1,0.0004,120]
[421147097,1777161131325,-1000.0,0.0004,120]
[421147098,1777161131334,-1599.28580842,0.0004,30]
[421147099,1777161131344,-153.0,0.0004,120]
[421147100,1777161131353,-818.72072271,0.0004,3]
[421147101,1777161131364,-394.79626378,0.0004,2]
[421147102,1777161131373,-1278.62702671,0.0004,120]
[421147103,1777161131383,-297.55053541,0.0004,2]
[421147104,1777161131393,-967.38673409,0.0004,2]
[421147105,1777161131403,-561.76212408,0.0004,120]
[421147106,1777161131413,-366.97666468,0.0004,120]
[421147107,1777161131422,-3453.0,0.0004,120]
[421147108,1777161131432,-1589.72901377,0.0004,14]
[421147109,1777161131442,-658.88156088,0.0004,120]
[421147110,1777161131452,-177.69214006,0.0004,120]
[421147111,1777161131462,-318.30256825,0.0004,2]
[421147112,1777161131471,-159.81427831,0.0004,120]
[421147113,1777161131481,-230.47254789,0.0004,120]
[421147114,1777161131491,-513.51864819,0.0004,2]
[421147115,1777161131501,-316.0,0.0004,120]
[421147116,1777161131510,-832.83950371,0.0004,120]
[421147117,1777161131520,-200000.0,0.0004,30]
[421147118,1777161131530,-8059.19677761,0.0004,30]
[421147119,1777161131539,-214.34900485,0.0004,120]
[421147120,1777161131549,-1009.0,0.0004,120]
[421147121,1777161131559,-1991.0665315,0.0004,120]
[421147122,1777161131569,-342.17,0.0004,90]
[421147123,1777161131579,-500.0,0.0004,120]
[421147124,1777161131588,-10000.0,0.0004,61]
[421147125,1777161131598,-1000.0,0.0004,120]
[421147126,1777161131612,-1000.0,0.0004,120]
[421147127,1777161131621,-1000.0,0.0004,120]
[421147128,1777161131631,-1000.0,0.0004,120]
[421147129,1777161131641,-1000.0,0.0004,120]
[421147130,1777161131651,-1000.0,0.0004,120]
[421147131,1777161131660,-932.97,0.0004,120]
[421147132,1777161131670,-3235.21466438,0.0004,30]
[421147133,1777161131680,-150.8237239,0.0004,7]
[421147134,1777161131690,-232.54839012,0.0004,30]
[421147135,1777161131700,-14408.50995744,0.0004,120]
[421147136,1777161131709,-167.40703995,0.0004,120]
[421147137,1777161131719,-440.4636,0.0004,120]
[421147138,1777161131729,-1081.0,0.0004,120]
[421147139,1777161131739,-336.54944114,0.0004,120]
[421147140,1777161131749,-1000.0,0.0004,120]
[421147141,1777161131759,-412.24,0.0004,120]
[421147142,1777161131770,-10160.7433184,0.0004,9]
[421147143,1777161131780,-6013.41836648,0.0004,120]
[421147144,1777161131790,-2175.95,0.0004,20]
[421147145,1777161131800,-1001.0,0.0004,30]
[421147146,1777161131811,-10000.0,0.0004,30]
[421147147,1777161131821,-1002.0,0.0004,30]
[421147148,1777161131831,-500.0,0.0004,120]
[421147149,1777161131845,-1200.0,0.0004,120]
[421147150,1777161131855,-10110.07515553,0.0004,7]
[421147151,1777161131865,-1519.75611956,0.0004,120]
[421147152,1777161131875,-48618.0,0.0004,120]
[421147153,1777161131884,-20000.0,0.0004,10]
[421147154,1777161131895,-171.0,0.0004,120]
[421147155,1777161131906,-168.30999626,0.0004,120]
[421147156,1777161131915,-1328.65134254,0.0004,120]
[421147157,1777161131925,-177.992336,0.0004,120]
[421147158,1777161131935,-1996.25841377,0.0004,120]
[421147159,1777161131944,-241.55914293,0.0004,30]
[421147160,1777161131954,-177.9,0.0004,120]
[421147161,1777161131963,-48894.0,0.0004,120]
[421147162,1777161131974,-10171.18048449,0.0004,6]
[421147163,1777161131984,-10160.45679812,0.0004,8]
[421147164,1777161131993,-17501.82097492,0.0004,120]
[421147165,1777161132004,-187.12529216,0.0004,120]
[421147166,1777161132014,-5000.0,0.0004,100]
[421147167,1777161132024,-4072.69,0.0004,120]
[421147168,1777161132034,-181.0,0.0004,120]
[421147169,1777161132044,-181.0,0.0004,120]
[421147170,1777161132054,-181.0,0.0004,120]
[421147171,1777161132064,-181.0,0.0004,120]
[421147172,1777161132074,-181.0,0.0004,120]
[421147173,1777161132084,-220.5994435,0.0004,120]
[421147174,1777161132094,-591.94699874,0.0004,82]
[421147175,1777161132104,-150.0,0.0004,5]
[421147176,1777161132114,-500.0,0.0004,120]
[421147177,1777161132124,-1111.10555556,0.0004,30]
[421147178,1777161132134,-166.66583333,0.0004,30]
[421147179,1777161132143,-361.11462242,0.0004,120]
[421147180,1777161132153,-566.49133961,0.0004,120]
[421147181,1777161132163,-30760.8860601,0.0004,2]
[421147182,1777161132173,-24022.94354372,0.0004,2]
[421147183,1777161132184,-4156.69311339,0.0004,2]
[421147184,1777161132194,-10810.93658792,0.0004,2]
[421147185,1777161132204,-10366.2089699,0.0004,120]
[421147186,1777161132214,-402.138,0.0004,120]
[421147187,1777161132223,-160.0,0.0004,10]
[421147188,1777161132233,-40185.93862004,0.0004,2]
[421147189,1777161132243,-706080.33142243,0.0004,120]
[421147190,1777161132252,-25000.0,0.0004,30]
[421147191,1777161132262,-233.0,0.0004,120]
[421147192,1777161132272,-242.0,0.0004,120]
[421147193,1777161132282,-729.03,0.0004,120]
[421147194,1777161132292,-333.91,0.0004,120]
[421147195,1777161132301,-293.01,0.0004,120]
[421147196,1777161132311,-225.92,0.0004,120]